[Event "14e Open International de Quenza"]
[Site "Quenza, France"]
[Date "????.??.??"]
[Round "4.6"]
[White "Bonelli Maestracci, Pierre Joseph"]
[Black "Terrieux, Kevin"]
[Result "1-0"]
[TimeControl "5min+3s"]
[WhiteElo "2098"]
[BlackElo "2394"]

1. e4 {[%clk 00:05:03]} {[%emt 00:03:05]} c5 {[%clk 00:05:03]} {[%emt
00:00:03]} 2. Nf3 {[%clk 00:05:03]} d6 {[%clk 00:05:03]} {[%emt 00:00:02]} 3.
d4 {[%clk 00:05:03]} cxd4 {[%clk 00:05:03]} {[%emt 00:00:02]} 4. Nxd4 {[%clk
00:05:03]} Nf6 {[%clk 00:05:03]} {[%emt 00:00:01]} 5. Nc3 {[%clk 00:05:03]} Bd7
{[%clk 00:05:03]} 6. Be2 {[%clk 00:04:58]} {[%emt 00:00:08]} Nc6 {[%clk
00:04:28]} {[%emt 00:00:39]} 7. Be3 {[%clk 00:04:58]} {[%emt 00:00:01]} a6
{[%clk 00:04:21]} {[%emt 00:00:10]} 8. g4 {[%clk 00:04:54]} {[%emt 00:00:06]}
Nxd4 {[%clk 00:04:00]} {[%emt 00:00:24]} 9. Bxd4 {[%clk 00:04:54]} e5 {[%clk
00:04:00]} {[%emt 00:00:02]} 10. Be3 {[%clk 00:04:54]} {[%emt 00:00:01]} Bc6
{[%clk 00:04:00]} {[%emt 00:00:04]} 11. Qd3 {[%clk 00:04:48]} {[%emt 00:00:09]}
d5 {[%clk 00:03:53]} {[%emt 00:00:10]} 12. exd5 {[%clk 00:04:40]} {[%emt
00:00:12]} Nxd5 {[%clk 00:03:53]} {[%emt 00:00:03]} 13. O-O-O {[%clk 00:04:10]}
{[%emt 00:00:33]} Nxe3 {[%clk 00:03:09]} {[%emt 00:00:47]} 14. Qxe3 {[%clk
00:04:10]} {[%emt 00:00:01]} Qa5 {[%clk 00:02:57]} {[%emt 00:00:16]} 15. Bf3
{[%clk 00:04:04]} {[%emt 00:00:09]} Bb4 {[%clk 00:01:28]} {[%emt 00:01:32]} 16.
Nd5 {[%clk 00:03:04]} {[%emt 00:01:03]} O-O {[%clk 00:01:21]} {[%emt 00:00:10]}
17. Nxb4 {[%clk 00:03:01]} {[%emt 00:00:07]} Qxb4 {[%clk 00:01:21]} {[%emt
00:00:02]} 18. Bxc6 {[%clk 00:02:57]} {[%emt 00:00:07]} bxc6 {[%clk 00:01:21]}
19. Qxe5 {[%clk 00:02:52]} {[%emt 00:00:08]} Rfe8 {[%clk 00:01:15]} {[%emt
00:00:09]} 20. Qd4 {[%clk 00:02:45]} {[%emt 00:00:09]} Qa5 {[%clk 00:01:15]}
{[%emt 00:00:02]} 21. a3 {[%clk 00:02:37]} {[%emt 00:00:11]} h6 {[%clk
00:01:14]} {[%emt 00:00:05]} 22. h4 {[%clk 00:02:34]} {[%emt 00:00:06]} Rad8
{[%clk 00:01:10]} {[%emt 00:00:06]} 23. Qc4 {[%clk 00:02:33]} {[%emt 00:00:04]}
Qb6 {[%clk 00:01:01]} {[%emt 00:00:13]} 24. g5 {[%clk 00:02:21]} {[%emt
00:00:16]} Rb8 {[%clk 00:00:37]} {[%emt 00:00:27]} 25. Qc3 {[%clk 00:02:15]}
{[%emt 00:00:09]} hxg5 {[%clk 00:00:26]} {[%emt 00:00:14]} 26. hxg5 {[%clk
00:02:15]} Qxf2 {[%clk 00:00:26]} {[%emt 00:00:01]} 27. Rh3 {[%clk 00:02:15]}
{[%emt 00:00:03]} Qf4+ {[%clk 00:00:25]} {[%emt 00:00:04]} 28. Kb1 {[%clk
00:02:15]} {[%emt 00:00:03]} Rxb2+ {[%clk 00:00:05]} {[%emt 00:00:24]} 29. Kxb2
{[%clk 00:02:15]} {[%emt 00:00:01]} Rb8+ {[%clk 00:00:05]} 30. Ka1 {[%clk
00:02:15]} {[%emt 00:00:01]} 1-0

[Event "14e Open International de Quenza"]
[Site "Quenza, France"]
[Date "????.??.??"]
[Round "4.7"]
[White "Sumets, Andrey"]
[Black "Pieri, Pierre-Louis"]
[Result "1-0"]
[TimeControl "5min+3s"]
[WhiteElo "2497"]
[BlackElo "2224"]

1. d4 {[%clk 00:05:03]} {[%emt 00:00:01]} Nf6 {[%clk 00:05:03]} {[%emt
00:00:04]} 2. c4 {[%clk 00:05:03]} {[%emt 00:00:01]} e6 {[%clk 00:05:01]}
{[%emt 00:00:04]} 3. Nf3 {[%clk 00:05:03]} {[%emt 00:00:02]} a6 {[%clk
00:05:01]} {[%emt 00:00:02]} 4. Nc3 {[%clk 00:04:50]} {[%emt 00:00:16]} d5
{[%clk 00:05:01]} {[%emt 00:00:01]} 5. cxd5 {[%clk 00:04:50]} {[%emt 00:00:03]}
exd5 {[%clk 00:05:01]} 6. Bg5 {[%clk 00:04:50]} {[%emt 00:00:02]} Be7 {[%clk
00:05:01]} {[%emt 00:00:04]} 7. e3 {[%clk 00:04:50]} {[%emt 00:00:03]} O-O
{[%clk 00:04:53]} {[%emt 00:00:12]} 8. Bd3 {[%clk 00:04:50]} {[%emt 00:00:02]}
Be6 {[%clk 00:04:50]} {[%emt 00:00:06]} 9. h3 {[%clk 00:04:37]} {[%emt
00:00:15]} Nbd7 {[%clk 00:04:45]} {[%emt 00:00:09]} 10. O-O {[%clk 00:04:37]}
{[%emt 00:00:03]} c6 {[%clk 00:04:37]} {[%emt 00:00:11]} 11. Qc2 {[%clk
00:04:35]} {[%emt 00:00:05]} g6 {[%clk 00:04:15]} {[%emt 00:00:26]} 12. Rab1
{[%clk 00:04:25]} {[%emt 00:00:13]} Nh5 {[%clk 00:04:04]} {[%emt 00:00:13]} 13.
Bh6 {[%clk 00:04:23]} {[%emt 00:00:05]} Re8 {[%clk 00:04:04]} {[%emt 00:00:02]}
14. b4 {[%clk 00:04:19]} {[%emt 00:00:06]} f5 {[%clk 00:03:50]} {[%emt
00:00:18]} 15. Na4 {[%clk 00:03:51]} {[%emt 00:00:31]} Bd6 {[%clk 00:02:22]}
{[%emt 00:01:31]} 16. Nc5 {[%clk 00:03:32]} {[%emt 00:00:22]} Qc7 {[%clk
00:02:20]} {[%emt 00:00:06]} 17. Rfc1 {[%clk 00:02:57]} {[%emt 00:00:38]} Nxc5
{[%clk 00:02:12]} {[%emt 00:00:11]} 18. bxc5 {[%clk 00:02:45]} {[%emt
00:00:15]} Bf8 {[%clk 00:02:10]} {[%emt 00:00:05]} 19. Bxf8 {[%clk 00:02:42]}
{[%emt 00:00:05]} Rxf8 {[%clk 00:02:10]} {[%emt 00:00:02]} 20. Rb6 {[%clk
00:02:38]} {[%emt 00:00:06]} Rae8 {[%clk 00:01:56]} {[%emt 00:00:17]} 21. Rcb1
{[%clk 00:02:33]} {[%emt 00:00:09]} Bc8 {[%clk 00:01:56]} {[%emt 00:00:01]} 22.
Ne5 {[%clk 00:02:23]} {[%emt 00:00:13]} f4 {[%clk 00:01:34]} {[%emt 00:00:25]}
23. e4 {[%clk 00:02:23]} {[%emt 00:00:03]} f3 {[%clk 00:00:52]} {[%emt
00:00:45]} 24. exd5 {[%clk 00:02:03]} {[%emt 00:00:22]} Rxe5 {[%clk 00:00:29]}
{[%emt 00:00:27]} 25. dxe5 {[%clk 00:02:03]} {[%emt 00:00:03]} Qxe5 {[%clk
00:00:27]} {[%emt 00:00:05]} 26. dxc6 {[%clk 00:01:19]} {[%emt 00:00:47]} Qg5
{[%clk 00:00:27]} {[%emt 00:00:03]} 27. Bf1 {[%clk 00:01:17]} {[%emt 00:00:05]}
Bxh3 {[%clk 00:00:23]} {[%emt 00:00:06]} 28. Qb3+ {[%clk 00:01:05]} {[%emt
00:00:14]} Kh8 {[%clk 00:00:23]} {[%emt 00:00:04]} 29. Qc3+ {[%clk 00:01:05]}
{[%emt 00:00:02]} Rf6 {[%clk 00:00:09]} {[%emt 00:00:18]} 30. cxb7 {[%clk
00:00:54]} {[%emt 00:00:14]} Bxg2 {[%clk 00:00:09]} {[%emt 00:00:01]} 31. b8=Q+
{[%clk 00:00:54]} {[%emt 00:00:03]} Kg7 {[%clk 00:00:09]} 32. Rxf6 {[%clk
00:00:40]} {[%emt 00:00:16]} Bh3+ {[%clk 00:00:05]} {[%emt 00:00:08]} 33. Qg3
{[%clk 00:00:40]} {[%emt 00:00:01]} Nxg3 {[%clk 00:00:05]} {[%emt 00:00:03]} 34.
Rf5+ {[%clk 00:00:38]} {[%emt 00:00:04]} Kh6 {[%clk 00:00:00]} {[%emt
00:00:05]} 35. Rxg5 {[%clk 00:00:38]} {[%emt 00:00:01]} 1-0

[Event "14e Open International de Quenza"]
[Site "Quenza, France"]
[Date "????.??.??"]
[Round "4.8"]
[White "Roux, Baptiste"]
[Black "Lagarde, Maxime"]
[Result "0-1"]
[TimeControl "5min+3s"]
[WhiteElo "2381"]
[BlackElo "2618"]

1. e4 {[%clk 00:05:03]} {[%emt 00:00:02]} c5 {[%clk 00:05:03]} {[%emt
00:00:01]} 2. Nf3 {[%clk 00:05:03]} {[%emt 00:00:01]} d6 {[%clk 00:05:03]} 3.
d4 {[%clk 00:05:03]} {[%emt 00:00:03]} cxd4 4. Nxd4 {[%clk 00:05:03]} Nf6
{[%clk 00:05:03]} 5. Nc3 {[%clk 00:05:03]} {[%emt 00:00:02]} g6 {[%clk
00:05:03]} 6. Be3 {[%clk 00:05:02]} {[%emt 00:00:04]} Bg7 {[%clk 00:05:03]}
{[%emt 00:00:01]} 7. f3 {[%clk 00:05:02]} Nc6 {[%clk 00:05:03]} {[%emt
00:00:01]} 8. Qd2 {[%clk 00:05:02]} {[%emt 00:00:02]} O-O {[%clk 00:05:03]}
{[%emt 00:00:02]} 9. Bc4 {[%clk 00:05:02]} {[%emt 00:00:01]} Bd7 {[%clk
00:05:03]} {[%emt 00:00:01]} 10. h4 {[%clk 00:05:02]} {[%emt 00:00:01]} Rc8
{[%clk 00:05:03]} {[%emt 00:00:03]} 11. Bb3 {[%clk 00:05:02]} h5 {[%clk
00:04:59]} {[%emt 00:00:08]} 12. O-O-O {[%clk 00:05:02]} {[%emt 00:00:02]} Ne5
{[%clk 00:04:59]} {[%emt 00:00:01]} 13. Bg5 {[%clk 00:05:02]} {[%emt 00:00:02]}
Nc4 {[%clk 00:04:45]} {[%emt 00:00:17]} 14. Qd3 {[%clk 00:04:54]} {[%emt
00:00:11]} b5 {[%clk 00:04:43]} {[%emt 00:00:06]} 15. Kb1 {[%clk 00:03:41]}
{[%emt 00:01:16]} Qa5 {[%clk 00:04:36]} {[%emt 00:00:09]} 16. Bxf6 {[%clk
00:03:09]} {[%emt 00:00:34]} exf6 {[%clk 00:04:32]} {[%emt 00:00:07]} 17. Nd5
{[%clk 00:03:08]} {[%emt 00:00:05]} Rfe8 {[%clk 00:04:31]} {[%emt 00:00:05]} 18.
c3 {[%clk 00:02:25]} {[%emt 00:00:46]} Rc5 {[%clk 00:04:18]} {[%emt 00:00:16]}
19. g4 {[%clk 00:01:30]} {[%emt 00:00:58]} hxg4 {[%clk 00:04:00]} {[%emt
00:00:21]} 20. h5 {[%clk 00:01:30]} f5 {[%clk 00:03:46]} {[%emt 00:00:18]} 21.
h6 {[%clk 00:01:14]} {[%emt 00:00:18]} Be5 {[%clk 00:03:02]} {[%emt 00:00:47]}
22. fxg4 {[%clk 00:00:46]} {[%emt 00:00:32]} f4 {[%clk 00:02:03]} {[%emt
00:01:01]} 23. h7+ {[%clk 00:00:37]} {[%emt 00:00:11]} Kh8 {[%clk 00:02:03]}
{[%emt 00:00:02]} 24. Bxc4 {[%clk 00:00:37]} {[%emt 00:00:04]} bxc4 {[%clk
00:02:00]} {[%emt 00:00:06]} 25. Qf3 {[%clk 00:00:27]} {[%emt 00:00:12]} g5
{[%clk 00:01:50]} {[%emt 00:00:13]} 26. Rh5 {[%clk 00:00:23]} {[%emt 00:00:07]}
f6 {[%clk 00:01:47]} {[%emt 00:00:07]} 27. Rh6 {[%clk 00:00:23]} {[%emt
00:00:01]} Rb8 {[%clk 00:01:47]} {[%emt 00:00:02]} 28. Nxf6 {[%clk 00:00:19]}
{[%emt 00:00:07]} Qa3 {[%clk 00:01:26]} {[%emt 00:00:25]} 29. Nb3 {[%clk
00:00:19]} {[%emt 00:00:01]} Rxb3 {[%clk 00:01:17]} {[%emt 00:00:11]} 30. axb3
{[%clk 00:00:19]} {[%emt 00:00:01]} Qxb3 {[%clk 00:01:17]} {[%emt 00:00:03]} 31.
Rd5 {[%clk 00:00:16]} {[%emt 00:00:06]} Rxd5 {[%clk 00:01:11]} {[%emt
00:00:09]} 32. exd5 {[%clk 00:00:16]} {[%emt 00:00:03]} Ba4 {[%clk 00:01:09]}
{[%emt 00:00:04]} 33. Qe2 {[%clk 00:00:14]} {[%emt 00:00:05]} f3 {[%clk
00:01:07]} {[%emt 00:00:05]} 34. Qxf3 {[%clk 00:00:10]} {[%emt 00:00:06]} Qc2+
{[%clk 00:01:07]} {[%emt 00:00:01]} 35. Ka2 {[%clk 00:00:10]} {[%emt 00:00:01]}
Qc1 {[%clk 00:00:59]} {[%emt 00:00:11]} 36. Ne4 {[%clk 00:00:06]} {[%emt
00:00:07]} Bb3+ {[%clk 00:00:59]} {[%emt 00:00:01]} 37. Ka3 {[%clk 00:00:06]}
Qa1+ {[%clk 00:00:59]} 38. Kb4 {[%clk 00:00:06]} Qa4# {[%clk 00:04:04]} {[%emt
00:00:01]} 0-1

[Event "14e Open International de Quenza"]
[Site "Quenza, France"]
[Date "????.??.??"]
[Round "4.9"]
[White "Mullon, Jean-Baptiste"]
[Black "Carrolaggi, Xavier"]
[Result "0-1"]
[TimeControl "5min+3s"]
[WhiteElo "2277"]
[BlackElo "1732"]

1. e4 {[%clk 00:05:03]} d6 {[%clk 00:05:03]} {[%emt 00:00:02]} 2. d4 {[%clk
00:05:03]} {[%emt 00:00:01]} Nf6 {[%clk 00:05:03]} {[%emt 00:00:01]} 3. Nc3
{[%clk 00:05:03]} g6 {[%clk 00:05:03]} {[%emt 00:00:02]} 4. Be3 {[%clk
00:05:02]} {[%emt 00:00:04]} c6 {[%clk 00:05:03]} {[%emt 00:00:02]} 5. Qd2
{[%clk 00:05:02]} {[%emt 00:00:03]} b5 {[%clk 00:05:03]} {[%emt 00:00:01]} 6.
Bd3 {[%clk 00:05:02]} {[%emt 00:00:01]} Qa5 {[%clk 00:04:50]} {[%emt 00:00:17]}
7. Nf3 {[%clk 00:04:57]} {[%emt 00:00:07]} Bg7 {[%clk 00:04:49]} {[%emt
00:00:04]} 8. O-O {[%clk 00:04:50]} {[%emt 00:00:11]} O-O {[%clk 00:04:49]}
{[%emt 00:00:03]} 9. e5 {[%clk 00:04:45]} {[%emt 00:00:08]} dxe5 {[%clk
00:04:18]} {[%emt 00:00:33]} 10. dxe5 {[%clk 00:04:38]} {[%emt 00:00:10]} Ng4
{[%clk 00:04:18]} {[%emt 00:00:01]} 11. Bf4 {[%clk 00:04:38]} {[%emt 00:00:02]}
Rd8 {[%clk 00:04:18]} {[%emt 00:00:01]} 12. Rfe1 {[%clk 00:04:04]} {[%emt
00:00:38]} Nd7 {[%clk 00:03:48]} {[%emt 00:00:34]} 13. h3 {[%clk 00:04:01]}
{[%emt 00:00:05]} b4 {[%clk 00:03:39]} {[%emt 00:00:12]} 14. hxg4 {[%clk
00:01:47]} {[%emt 00:02:17]} bxc3 {[%clk 00:03:39]} {[%emt 00:00:02]} 15. Qxc3
{[%clk 00:01:45]} {[%emt 00:00:04]} Qxc3 {[%clk 00:03:39]} {[%emt 00:00:01]} 16.
bxc3 {[%clk 00:01:45]} Nc5 {[%clk 00:03:39]} 17. Bc4 {[%clk 00:01:43]} {[%emt
00:00:05]} Bxg4 {[%clk 00:03:25]} {[%emt 00:00:18]} 18. Ng5 {[%clk 00:01:43]}
{[%emt 00:00:01]} e6 {[%clk 00:02:53]} {[%emt 00:00:35]} 19. f3 {[%clk
00:01:43]} {[%emt 00:00:01]} Bf5 {[%clk 00:02:53]} {[%emt 00:00:01]} 20. Ne4
{[%clk 00:01:10]} {[%emt 00:00:36]} Nxe4 {[%clk 00:02:35]} {[%emt 00:00:21]} 21.
fxe4 {[%clk 00:01:10]} {[%emt 00:00:02]} Bg4 {[%clk 00:02:31]} {[%emt
00:00:08]} 22. Rab1 {[%clk 00:01:10]} {[%emt 00:00:04]} Rab8 {[%clk 00:02:24]}
{[%emt 00:00:10]} 23. Kf2 {[%clk 00:01:10]} {[%emt 00:00:02]} h5 {[%clk
00:02:23]} {[%emt 00:00:04]} 24. Rb4 {[%clk 00:01:07]} {[%emt 00:00:06]} Rxb4
{[%clk 00:02:14]} {[%emt 00:00:11]} 25. cxb4 {[%clk 00:01:07]} {[%emt
00:00:01]} Rd4 {[%clk 00:02:14]} 26. Bb3 {[%clk 00:00:55]} {[%emt 00:00:15]}
Rxb4 {[%clk 00:01:42]} {[%emt 00:00:36]} 27. Re3 {[%clk 00:00:55]} Rb5 {[%clk
00:01:36]} {[%emt 00:00:08]} 28. Rd3 {[%clk 00:00:15]} {[%emt 00:00:43]} Bxe5
{[%clk 00:01:33]} {[%emt 00:00:07]} 29. Bxe5 {[%clk 00:00:15]} {[%emt
00:00:01]} Rxe5 {[%clk 00:01:33]} {[%emt 00:00:02]} 30. Rd4 {[%clk 00:00:13]}
{[%emt 00:00:04]} c5 {[%clk 00:01:30]} {[%emt 00:00:06]} 31. Ra4 {[%clk
00:00:13]} {[%emt 00:00:02]} Kg7 {[%clk 00:01:08]} {[%emt 00:00:25]} 32. Ke3
{[%clk 00:00:13]} {[%emt 00:00:03]} Kf6 {[%clk 00:01:08]} {[%emt 00:00:01]} 33.
Kd3 {[%clk 00:00:13]} {[%emt 00:00:02]} Rg5 {[%clk 00:01:05]} {[%emt 00:00:05]}
34. Rxa7 {[%clk 00:00:13]} {[%emt 00:00:02]} Bd1 {[%clk 00:01:00]} {[%emt
00:00:08]} 35. a4 {[%clk 00:00:09]} {[%emt 00:00:08]} Rxg2 {[%clk 00:01:00]}
{[%emt 00:00:02]} 36. a5 {[%clk 00:00:09]} h4 {[%clk 00:00:57]} {[%emt
00:00:06]} 37. e5+ {[%clk 00:00:09]} Kxe5 {[%clk 00:00:55]} {[%emt 00:00:04]}
38. Rxf7 {[%clk 00:00:09]} h3 {[%clk 00:00:51]} {[%emt 00:00:08]} 39. Rh7
{[%clk 00:00:09]} {[%emt 00:00:01]} Bh5 {[%clk 00:00:51]} 40. a6 {[%clk
00:00:09]} {[%emt 00:00:02]} h2 {[%clk 00:00:51]} 41. a7 {[%clk 00:00:09]}
{[%emt 00:00:03]} h1=Q {[%clk 00:00:51]} {[%emt 00:00:02]} 42. a8=Q {[%clk
00:00:09]} {[%emt 00:00:02]} Rg3+ {[%clk 00:00:51]} {[%emt 00:00:03]} 43. Kd2
{[%clk 00:00:09]} Qxa8 {[%clk 00:00:51]} {[%emt 00:00:01]} 44. Re7 {[%clk
00:00:09]} {[%emt 00:00:01]} Qa5+ {[%clk 00:00:50]} {[%emt 00:00:04]} 45. Kc1
{[%clk 00:00:09]} Rg1+ {[%clk 00:00:46]} {[%emt 00:00:07]} 0-1

[Event "14e Open International de Quenza"]
[Site "Quenza, France"]
[Date "????.??.??"]
[Round "4.10"]
[White "Deladerriere, Apollo"]
[Black "Bernardi, Alexandre"]
[Result "1-0"]
[TimeControl "5min+3s"]
[WhiteElo "2131"]
[BlackElo "1897"]

1. e4 {[%clk 00:05:03]} {[%emt 00:00:01]} c5 {[%clk 00:05:03]} {[%emt
00:00:01]} 2. Nf3 {[%clk 00:05:03]} {[%emt 00:00:02]} g6 {[%clk 00:05:03]}
{[%emt 00:00:02]} 3. d4 {[%clk 00:05:03]} {[%emt 00:00:01]} cxd4 {[%clk
00:05:03]} {[%emt 00:00:02]} 4. Qxd4 {[%clk 00:05:03]} {[%emt 00:00:02]} Nf6
{[%clk 00:05:03]} {[%emt 00:00:01]} 5. e5 {[%clk 00:05:02]} {[%emt 00:00:04]}
Nc6 {[%clk 00:05:03]} {[%emt 00:00:01]} 6. Qa4 {[%clk 00:05:02]} {[%emt
00:00:02]} Nd5 {[%clk 00:05:03]} {[%emt 00:00:02]} 7. Qe4 {[%clk 00:05:02]}
{[%emt 00:00:03]} Nb6 {[%clk 00:05:03]} {[%emt 00:00:01]} 8. Nc3 {[%clk
00:05:02]} {[%emt 00:00:03]} Bg7 {[%clk 00:05:03]} {[%emt 00:00:01]} 9. Bf4
{[%clk 00:05:02]} {[%emt 00:00:02]} d5 {[%clk 00:04:57]} {[%emt 00:00:09]} 10.
exd6 {[%clk 00:04:54]} {[%emt 00:00:12]} Bf5 {[%clk 00:04:57]} {[%emt
00:00:01]} 11. dxe7 {[%clk 00:04:37]} {[%emt 00:00:20]} Bxc3+ {[%emt 00:01:35]}
12. bxc3 {[%clk 00:04:31]} {[%emt 00:00:29]} Bxe4 {[%clk 00:03:44]} {[%emt
00:00:05]} 13. exd8=Q+ {[%clk 00:04:29]} {[%emt 00:00:04]} Rxd8 {[%clk
00:03:39]} {[%emt 00:00:07]} 14. Bb5 {[%clk 00:03:06]} {[%emt 00:01:27]} O-O
{[%clk 00:03:19]} {[%emt 00:00:23]} 15. O-O {[%clk 00:02:45]} {[%emt 00:00:24]}
Bxc2 {[%clk 00:03:04]} {[%emt 00:00:18]} 16. Rfe1 {[%clk 00:02:23]} {[%emt
00:00:24]} a6 {[%clk 00:02:45]} {[%emt 00:00:22]} 17. Bxc6 {[%clk 00:02:18]}
{[%emt 00:00:08]} bxc6 {[%clk 00:02:45]} {[%emt 00:00:03]} 18. Bc7 {[%clk
00:02:18]} Nd5 {[%clk 00:02:38]} {[%emt 00:00:10]} 19. Bxd8 {[%clk 00:02:18]}
Rxd8 {[%clk 00:02:38]} 20. Nd4 {[%clk 00:02:16]} {[%emt 00:00:05]} Bd3 {[%clk
00:02:30]} {[%emt 00:00:12]} 21. Rad1 {[%clk 00:01:56]} {[%emt 00:00:23]} Bc4
{[%clk 00:02:02]} {[%emt 00:00:30]} 22. Nxc6 {[%clk 00:01:55]} {[%emt
00:00:05]} Rc8 {[%clk 00:02:02]} 23. Rxd5 {[%clk 00:01:47]} {[%emt 00:00:11]}
Rxc6 {[%clk 00:02:00]} {[%emt 00:00:05]} 24. Ra5 {[%clk 00:01:45]} {[%emt
00:00:05]} Bb5 {[%clk 00:01:25]} {[%emt 00:00:38]} 25. Rc1 {[%clk 00:01:43]}
{[%emt 00:00:04]} Rc4 {[%clk 00:01:21]} {[%emt 00:00:07]} 26. a4 {[%clk
00:01:32]} {[%emt 00:00:14]} Rxa4 {[%clk 00:01:17]} {[%emt 00:00:07]} 27. Rxa4
{[%clk 00:01:32]} {[%emt 00:00:01]} Bxa4 {[%clk 00:01:17]} {[%emt 00:00:01]} 28.
Kf1 {[%clk 00:01:32]} Kf8 {[%clk 00:01:14]} {[%emt 00:00:05]} 29. Ke2 {[%clk
00:01:32]} {[%emt 00:00:01]} Ke7 {[%clk 00:01:14]} 30. Ke3 {[%clk 00:01:15]}
{[%emt 00:00:20]} Kd6 {[%emt 00:00:07]} 31. Kd4 Bc6 {[%clk 00:01:11]} {[%emt
00:00:02]} 32. f3 {[%clk 00:01:14]} {[%emt 00:00:04]} a5 {[%clk 00:01:10]}
{[%emt 00:00:03]} 33. Kc4 {[%clk 00:01:09]} {[%emt 00:00:09]} a4 {[%clk
00:01:09]} {[%emt 00:00:05]} 34. Kb4 {[%clk 00:01:09]} Ke5 {[%clk 00:00:56]}
{[%emt 00:00:16]} 35. Ra1 {[%clk 00:01:09]} {[%emt 00:00:02]} Kf4 {[%clk
00:00:54]} {[%emt 00:00:05]} 36. c4 {[%clk 00:01:04]} {[%emt 00:00:07]} Ke3
{[%clk 00:00:52]} {[%emt 00:00:05]} 37. Rxa4 {[%clk 00:00:49]} {[%emt
00:00:18]} Bxa4 {[%clk 00:00:24]} {[%emt 00:00:31]} 38. Kxa4 {[%clk 00:00:49]}
{[%emt 00:00:01]} Kf2 {[%clk 00:00:24]} 39. c5 {[%clk 00:00:46]} {[%emt
00:00:06]} Kxg2 40. c6 Kxf3 {[%clk 00:00:13]} {[%emt 00:00:14]} 41. c7 {[%clk
00:00:46]} {[%emt 00:00:01]} f5 {[%clk 00:00:13]} {[%emt 00:00:01]} 42. c8=Q
{[%clk 00:00:46]} {[%emt 00:00:02]} f4 {[%clk 00:00:13]} {[%emt 00:00:01]} 43.
Qh3+ {[%clk 00:00:45]} {[%emt 00:00:04]} Kf2 {[%clk 00:00:11]} {[%emt
00:00:05]} 44. Kb3 {[%clk 00:00:45]} f3 {[%clk 00:00:06]} {[%emt 00:00:09]} 45.
Kc3 {[%clk 00:00:45]} {[%emt 00:00:04]} Ke2 {[%clk 00:00:06]} {[%emt 00:00:02]}
46. Qe6+ {[%clk 00:00:41]} {[%emt 00:00:06]} Kf1 {[%clk 00:00:04]} {[%emt
00:00:04]} 47. Kd2 {[%clk 00:00:36]} {[%emt 00:00:08]} Kg2 {[%clk 00:00:04]}
{[%emt 00:00:02]} 48. Qg4 {[%clk 00:00:32]} {[%emt 00:00:07]} Kf2 {[%clk
00:00:04]} 49. Qg3 {[%clk 00:00:32]} {[%emt 00:00:02]} 1-0